Cogmind - Beta 16.1 @@@ ROGUE MODE // 2026.03.14 @ 21:52:38 Player: Ragnakor Result: Destroyed by B-36 Bruiser with Hammer Performance ------------- Evolutions (2) 1000 Regions Visited (4) 800 Robots Destroyed (20) 100 Value Destroyed (413) 413 Prototype IDs (1) 20 Alien Tech Used (0) 0 Bonus (200) 200 TOTAL SCORE: 2533 Bonus ------- Entered Garrisons 200 Cogmind --------- Core Integrity 0/550 Matter 175/300 Energy 100/100 System Corruption 3% Temperature Cool (6) Movement Core (50) Location -8/Garrison Parts ------- > --- POWER (1) -------- (None) > --- PROPULSION (4) --- (None) > --- UTILITY (4) ------ (None) > --- WEAPON (2) ------- (None) > --- INVENTORY (5) ---- Light Assault Rifle Rocket Launcher Datajack Welding Torch Heavy Hammer Peak State ------------ > --- POWER ------------ Ion Engine > --- PROPULSION ------- Improved Hover Unit Improved Hover Unit Flight Unit Flight Unit > --- UTILITY ---------- Structural Scanner Improved Terrain Scanner > --- WEAPON ----------- Small Laser Rocket Launcher > --- INVENTORY -------- Flight Unit Datajack Welding Torch [Rating: 14] Favorites ----------- Power Ion Engine Engine Ion Engine Propulsion Aluminum Leg Leg Aluminum Leg Wheel Wheel Hover Unit Improved Hover Unit Flight Unit Flight Unit Utility Improved Terrain Scanner Device Improved Terrain Scanner Storage Small Storage Unit Processor Machine Analyzer Weapon Light Assault Rifle Energy Gun Small Laser Ballistic Gun Light Assault Rifle Launcher Rocket Launcher Special Weapon Welding Torch Impact Weapon Heavy Hammer Build | -11 -10 -9 -8 -8 ------- Run | Yrd Mat Mat Mat Gar Slots Evolved 4 | . . 2 2 . Power . | . . . . . Propulsion 2 | . . 2 . . Utility 2 | . . . 2 . Weapon . | . . . . . Parts Attached 39 | 9 16 11 3 . Power 5 | 1 3 1 . . Engine 5 | 1 3 1 . . Core . | . . . . . Reactor . | . . . . . Propulsion 17 | 4 8 5 . . Treads . | . . . . . Leg 7 | 2 4 1 . . Wheel 2 | 2 . . . . Hover 4 | . 4 . . . Flight 4 | . . 4 . . Utility 6 | 2 1 1 2 . Device 4 | 2 1 . 1 . Storage 1 | . . 1 . . Processor 1 | . . . 1 . Hackware . | . . . . . Protection . | . . . . . Artifact . | . . . . . Weapon 11 | 2 4 4 1 . Energy Gun 4 | . 2 1 1 . Energy Cannon . | . . . . . Ballistic Gun 4 | 2 . 2 . . Ballistic Cannon . | . . . . . Launcher 1 | . 1 . . . Special Weapon 1 | . 1 . . . Impact Weapon 1 | . . 1 . . Slashing Weapon . | . . . . . Piercing Weapon . | . . . . . Special Melee Weapon . | . . . . . Unidentified Prototypes 1 | . . 1 . . Parts Lost 21 | . 6 12 . 3 Power 2 | . . 2 . . Propulsion 10 | . 3 7 . . Utility 5 | . 1 1 . 3 Weapon 4 | . 2 2 . . Highest Loss Streak 9 | . 6 9 . 2 To Critical Strikes . | . . . . . Average Backups 4 | 1 4 5 4 5 Power . | . . . . . Propulsion 2 | 1 3 1 . . Utility . | . . . . . Weapon . | . . 2 2 3 Tool/Special . | . . . . . Unused Backups 3 | . 2 . . 1 Power . | . . . . . Propulsion . | . . . . . Utility 2 | . 2 . . . Weapon . | . . . . . Tool/Special 1 | . . . . 1 Average Slot Usage (%) 81 | . 98 79 25 18 Engine 10 | . 14 7 . . Leg 12 | . 19 1 . . Hover 6 | . 8 7 . . Flight 4 | . . 23 . . Device 21 | . 27 14 12 9 Storage 1 | . . 6 . . Energy Gun 5 | . 7 3 2 . Ballistic Gun 12 | . 16 7 9 . Launcher 2 | . 2 5 . . Peak Build Rating 14 | 9 12 14 10 7 Average Rating 8 | 4 9 9 4 4 On Entrance 6 | . 9 12 2 7 Avg Prop Armor Cover (%) 6 | 10 . 6 . . Naked Turns 5 | . . . . 5 Heaviest Build 16 | 8 12 16 6 2 Greatest Support 20 | 20 20 16 3 3 Greatest Overweight (x) 3 | . . 3 1 . Average Overweight (x) . | . . . . . Largest Inventory Capacity 8 | 5 5 8 5 5 Average Capacity 5 | 5 5 6 5 5 Most Carried 8 | 3 5 8 5 5 Average Carried 4 | 1 4 5 4 5 Final Capacity 5 | 5 5 5 5 5 Final Carried 5 | 3 5 4 5 5 Class Distribution -------------------- 71% | Mutant 24% | Scavenger-Mutant 3% | Scavenger-Sprinter Dominant Class ---------------- Mutant | -10/Materials Scavenger-Mutant | -9/Materials Mutant | -8/Materials Mutant | -8/Garrison Resources | -11 -10 -9 -8 -8 ----------- Run | Yrd Mat Mat Mat Gar Matter Collected 622 | 252 214 156 . . Remotely . | . . . . . Salvage Created 436 | 67 268 101 . . Parts 46 | 11 27 8 . . Haulers Intercepted . | . . . . . Recyclers Shooed 1 | . 1 . . . Parts Field Recycled . | . . . . . Retrieved Matter . | . . . . . Parts Self-Destructed . | . . . . . Prevented . | . . . . . Parts Restored . | . . . . . Kills | -11 -10 -9 -8 -8 ------- Run | Yrd Mat Mat Mat Gar Combat Hostiles Destroyed 14 | 1 8 5 . . Guns 9 | 1 7 1 . . AOE 5 | . 1 4 . . Classes Destroyed 6 | 2 4 . . . Builder 2 | . 1 1 . . Tunneler 1 | 1 . . . . Operator 1 | . 1 . . . Watcher 2 | . 2 . . . Swarmer 7 | . 4 3 . . Grunt 7 | 1 4 2 . . Best Kill Streak 4 | 1 4 4 . . Combat Bots Only 4 | 1 3 4 . . Max Kills in Single Turn 3 | 1 2 3 . . Gunslinging . | . . . . . Exploded 3 | . 1 3 . . Melee . | . . . . . Uniques/NPCs Destroyed . | . . . . . Combat | -11 -10 -9 -8 -8 -------- Run | Yrd Mat Mat Mat Gar Hostile Shots Fired 321 | 6 154 80 11 70 Missed 120 | 1 53 30 10 26 Hits 201 | 5 101 50 1 44 Melee 2 | . . . . 2 Projectile 199 | 5 101 50 1 42 Critical Strikes 3 | . 1 . . 2 Damage Taken 2581 | 55 1002 909 18 597 Core 913 | 11 165 177 18 542 Absorbed by Shields 68 | . . . . 68 Core Remaining (%) 59 | 95 29 55 . . Volleys Fired 52 | 8 34 10 . . Largest 2 | 2 2 2 . . Hottest 80 | 40 80 73 . . Shots Fired 92 | 16 60 16 . . Gun 84 | 16 55 13 . . Cannon . | . . . . . Launcher 6 | . 3 3 . . Special 2 | . 2 . . . Kinetic 62 | 16 40 6 . . Thermal 20 | . 17 3 . . Explosive 6 | . 3 3 . . Electromagnetic 4 | . . 4 . . Robot Hit Streak 10 | 10 5 5 . . Robot Miss Streak 4 | 2 4 2 . . Penetration Max . | . . . . . Secondary Targets 2 | . 1 1 . . Max Gunslinging Chain 1 | . 1 1 . . Shots Hit Robots 54 | 11 28 15 . . Core Hits 29 | 4 17 8 . . Critical Kills . | . . . . . Critical Parts Destroyed 1 | . . 1 . . Critical Strikes 1 | . . 1 . . Smash 1 | . . 1 . . Melee Attacks 14 | . . 14 . . Impact 14 | . . 14 . . Slashing . | . . . . . Piercing . | . . . . . Sneak Attacks 1 | . . 1 . . Combat Hostiles . | . . . . . Follow-up Attacks . | . . . . . Damage Inflicted 1131 | 105 514 475 . 37 Guns 535 | 105 323 107 . . Cannons . | . . . . . Explosions 363 | . 159 204 . . Melee 164 | . . 164 . . Ramming 69 | . 32 . . 37 Kinetic 378 | 105 234 39 . . Thermal 99 | . 89 10 . . Explosive 363 | . 159 204 . . Electromagnetic 58 | . . 58 . . Impact 164 | . . 164 . . Slashing . | . . . . . Piercing . | . . . . . Highest Corruption 9 | . 3 9 . 3 Average Corruption 3 | . 2 9 . 3 Corruption Purged . | . . . . . Corruption Blocked . | . . . . . Effects 10 | . 4 5 . 1 Message Errors 3 | . . 3 . . Matter Fused 2 | . 1 . . 1 Energy Discharges 2 | . 1 1 . . Parts Fused 1 | . 1 . . . Data Loss (minor) 1 | . 1 . . . Misfires 1 | . . 1 . . Overload Shots . | . . . . . Overflow Damage 85 | . 20 65 . . Projectiles . | . . . . . Explosions 20 | . 20 . . . Melee 65 | . . 65 . . Knockbacks . | . . . . . Impact . | . . . . . Kinetic . | . . . . . Secondary . | . . . . . Self-Inflicted Damage 38 | . 21 . . 17 Shots . | . . . . . Rammed 7 | . . . . 7 Targets Rammed 11 | . 4 . . 7 Kicked 4 | . 4 . . . Crushed . | . . . . . Highest Temperature 84 | 12 84 25 . 5 Average Temperature 19 | 7 24 12 . 5 Received Heat Transfer 919 | 30 348 270 9 262 Siege Activations . | . . . . . Martial Activations . | . . . . . Shielding Activations . | . . . . . Robots Disrupted . | . . . . . Combat Hostiles . | . . . . . Robots Corrupted 1 | . . 1 . . Combat Hostiles . | . . . . . Parts Fried 1 | . . 1 . . Impact Corruptions 3 | . . 3 . . Robots Melted . | . . . . . Combat Hostiles . | . . . . . Parts Melted . | . . . . . Heat Transferred 225 | . 200 25 . . Parts Sabotaged . | . . . . . Parts Stolen . | . . . . . Parts Stripped . | . . . . . Power Chain Reactions . | . . . . . Alert | -11 -10 -9 -8 -8 ------- Run | Yrd Mat Mat Mat Gar Maximum Alert Level . | . . . . . Low Security (%) 100 | 100 100 100 100 100 Level 1 . | . . . . . Level 2 . | . . . . . Level 3 . | . . . . . Level 4 . | . . . . . Level 5 . | . . . . . High Security . | . . . . . Max Security . | . . . . . Peak Influence 176 | 20 125 176 45 116 Initial 45 | . . 45 30 31 Average 42 | 4 22 120 29 63 Influence Increases 839 | 25 402 258 49 105 Destroy 0b10 Robot/C 280 | 20 160 100 . . Destroy 0b10 Robot/NC 30 | 5 20 5 . . Destroy Leader 54 | . 34 20 . . Successful Hack 65 | . 44 17 4 . Disable Machine 60 | . 45 15 . . Destroy Structure 65 | . 24 41 . . Lose Combat Pursuer 285 | . 75 60 45 105 Influence Decreases 733 | 25 293 294 73 48 Entered New Map 125 | . . 64 43 18 Time Decay 350 | 25 185 110 30 . Lost Part 204 | . 54 120 . 30 Purge Threat 54 | . 54 . . . Squads Dispatched 6 | . 5 1 . . Investigation 5 | . 5 . . . Extermination . | . . . . . Reinforcement 1 | . . 1 . . Assault . | . . . . . Garrison . | . . . . . Intercept . | . . . . . Searches Triggered . | . . . . . Construction Impeded . | . . . . . Haulers Reinforced . | . . . . . Active Scanning Responses . | . . . . . Cargo Convoy Interrupts . | . . . . . Stealth | -11 -10 -9 -8 -8 --------- Run | Yrd Mat Mat Mat Gar Distress Signals 4 | . 1 2 1 . Communications Jammed . | . . . . . Distress Signals . | . . . . . Times Spotted 69 | 1 26 13 10 19 Peak Tracking Total 12 | 1 7 6 8 12 Tactical Retreats 7 | . 2 2 1 2 Traps | -11 -10 -9 -8 -8 ------- Run | Yrd Mat Mat Mat Gar Traps Triggered 7 | . 3 1 1 2 Indirectly . | . . . . . Trap Hack Attempts . | . . . . . Triggered . | . . . . . Disarmed . | . . . . . Reprogrammed . | . . . . . Reused . | . . . . . Traps Extracted . | . . . . . Installed . | . . . . . Triggered . | . . . . . Machines | -11 -10 -9 -8 -8 ---------- Run | Yrd Mat Mat Mat Gar Machines Disabled 4 | . 3 1 . . Max in Single Turn 2 | . 2 1 . . Machines Repaired . | . . . . . Machines Dismantled . | . . . . . Machines Sabotaged . | . . . . . Overloaded Fab Kills . | . . . . . Hacking | -11 -10 -9 -8 -8 --------- Run | Yrd Mat Mat Mat Gar Machines Accessed 14 | . 7 5 2 . Terminals 10 | . 6 3 1 . Fabricators . | . . . . . Repair Stations . | . . . . . Recycling Units 3 | . 1 2 . . Scanalyzers . | . . . . . Garrison Access 1 | . . . 1 . Total Hacks 41 | . 21 16 4 . Successful 17 | . 7 9 1 . Failed 24 | . 14 7 3 . Catastrophic 4 | . 2 2 . . Database Lockouts . | . . . . . Manual 27 | . 18 7 2 . Terminals 33 | . 18 13 2 . Fabricators . | . . . . . Repair Stations . | . . . . . Recycling Units 6 | . 3 3 . . Scanalyzers . | . . . . . Garrison Access 2 | . . . 2 . Terminal Hacks 6 | . 2 4 . . Terminal Index 2 | . 1 1 . . Unreport Threat 1 | . 1 . . . Investigation Status 1 | . . 1 . . Hauler Manifests 1 | . . 1 . . Registered Components 1 | . . 1 . . Fabricator Hacks . | . . . . . Repair Station Hacks . | . . . . . Recycling Unit Hacks 3 | . 1 2 . . Report Inventory 3 | . 1 2 . . Scanalyzer . | . . . . . Garrison Access Hacks 1 | . . . 1 . Unlock Access 1 | . . . 1 . Unauthorized Hacks 7 | . 4 3 . . Terminals 7 | . 4 3 . . Assimilate 2 | . 1 1 . . Botnet 3 | . 2 1 . . Operators 2 | . 1 1 . . Fabricators . | . . . . . Repair Stations . | . . . . . Recycling Units . | . . . . . Scanalyzers . | . . . . . Garrison Access . | . . . . . Data Cores Recovered . | . . . . . Used . | . . . . . Hacking Detections 14 | . 7 5 2 . Full Trace Events 5 | . 5 . . . Feedback Events . | . . . . . Feedback Blocked . | . . . . . Robot Schematics Acquired . | . . . . . Robots Built . | . . . . . Authchips . | . . . . . Time . | . . . . . Total Robot Build Rating . | . . . . . Part Schematics Acquired . | . . . . . Parts Built . | . . . . . Authchips . | . . . . . Time . | . . . . . Total Part Build Rating . | . . . . . Part Studies Acquired . | . . . . . Parts Repaired . | . . . . . Time . | . . . . . Parts Recycled . | . . . . . Recycled Matter . | . . . . . Retrieved Matter . | . . . . . Retrieved Components . | . . . . . Parts Scanalyzed . | . . . . . Part Schematics Acquired . | . . . . . Parts Damaged . | . . . . . Bothacking | -11 -10 -9 -8 -8 ------------ Run | Yrd Mat Mat Mat Gar Used RIF Installer . | . . . . . Robots Hacked . | . . . . . Non-combat . | . . . . . Combat . | . . . . . Robot Hacks Applied . | . . . . . Relay Couplers Released . | . . . . . Fabnet Peak Effective % . | . . . . . Robots Rewired . | . . . . . Allies Hacked . | . . . . . Hacks Repelled . | . . . . . Allies | -11 -10 -9 -8 -8 -------- Run | Yrd Mat Mat Mat Gar Total Allies . | . . . . . Largest Group . | . . . . . Highest-Rated Group . | . . . . . Highest-Rated Ally . | . . . . . Total Orders . | . . . . . Ally Attacks . | . . . . . Total Damage . | . . . . . Kills . | . . . . . Allies Corrupted . | . . . . . Allies Melted . | . . . . . Intel | -11 -10 -9 -8 -8 ------- Run | Yrd Mat Mat Mat Gar Active Infowar (turns) 1120 | 26 727 235 74 58 Sensors 70 | . . . 30 40 Terrain 809 | 26 727 56 . . Structural 560 | . 193 235 74 58 Seismic 491 | 10 481 . . . Machine Analysis 84 | . . . 26 58 Robot Analysis Total . | . . . . . Derelict Logs Recovered . | . . . . . Drone Launches . | . . . . . Drone Recoveries . | . . . . . Exploration | -11 -10 -9 -8 -8 ------------- Run | Yrd Mat Mat Mat Gar Turns Passed 1281 | 148 727 235 76 95 Spaces Moved 1328 | 104 648 318 120 138 Core 283 | 18 . 7 120 138 Treads . | . . . . . Legs 454 | 81 347 26 . . Wheels 5 | 5 . . . . Hover 344 | . 301 43 . . Flight 242 | . . 242 . . Fastest Speed 31 | 50 56 31 50 50 Average Speed 73 | 105 90 44 55 50 Slowest Speed 200 | 120 120 200 100 50 Overloaded Moves . | . . . . . Propulsion Burnouts . | . . . . . Robots Hopped . | . . . . . Potential Cave-ins . | . . . . . Cave-ins Triggered 1 | . . 1 . . Exploration Rate (%) 29 | 6 66 30 20 26 Regions Visited 4 Branch Regions . Pre-discovered Areas . | . . . . . Known Exits Taken 1 | . . . 1 . Unknown Exits Taken 3 | 1 1 1 . . Scrap Searched . | . . . . . Spaces Dug 7 | . . 7 . . Terrain Destroyed 67 | . 25 42 . . Melee 7 | . . 7 . . Projectile . | . . . . . AOE 60 | . 25 35 . . Terrain Rammed 1 | . 1 . . . Walls Destroyed . | . . . . . Machines Disabled . | . . . . . Actions | -11 -10 -9 -8 -8 --------- Run | Yrd Mat Mat Mat Gar Total 1513 | 123 731 368 127 164 Wait 17 | . 12 5 . . Move 1325 | 103 647 317 120 138 Hop . | . . . . . Pick Up 13 | 3 7 3 . . Fast Attach 18 | 7 4 2 5 . Attach 9 | . 2 7 . . Detach 2 | . . 1 1 . Swap 22 | 2 11 9 . . Drop 10 | . 9 . 1 . Fire 52 | 8 34 10 . . Melee 14 | . . 14 . . Ram 8 | . 1 . . 7 Kick 4 | . 4 . . . Crush . | . . . . . Escape Stasis 18 | . . . . 18 Rewire 1 | . . . . 1 Trap . | . . . . . Miscellaneous . | . . . . . Route ------- -11/Scrapyard -10/Materials (discovered 3 exits: *Mat x2 / [*Min]) -9/Materials (discovered 2 exits: *Mat / [*Min]) -8/Materials -8/Garrison (discovered 1 exit: [*Mat]) History --------- Turn | Location | Event 2 | -11/Scrapyard | Met Revision 17 70 | -11/Scrapyard | Discovered new exit (range 8) 149 | -11/Scrapyard | Entered Materials 309 | -10/Materials | Build established: Mutant 371 | -10/Materials | Discovered new exit (range 12) 659 | -10/Materials | Core integrity fell below 50% 697 | -10/Materials | Lost 6 parts (3n1u2w) 708 | -10/Materials | Discovered new exit (range 10) 848 | -10/Materials | Discovered new exit (range 13) 876 | -10/Materials | Entered another Materials area 876 | -9/Materials | Evolved 2 slots: Propulsion x2 954 | -9/Materials | Discovered new exit (range 14) 1003 | -9/Materials | Crushed by falling debris 1039 | -9/Materials | Lost 3 parts (1p2n) 1088 | -9/Materials | Discovered new exit (range 15) 1111 | -9/Materials | Entered another Materials area 1111 | -8/Materials | Evolved 2 slots: Utility x2 1140 | -8/Materials | Lost 9 parts (1p5n1u2w) 1187 | -8/Materials | Identified exit to Garrison 1187 | -8/Materials | Entered Garrison 1193 | -8/Garrison | Triggered checkpoint 1197 | -8/Garrison | Discovered new exit (range 5) 1221 | -8/Garrison | Triggered checkpoint 1261 | -8/Garrison | Triggered checkpoint 1265 | -8/Garrison | Core integrity fell below 50% 1267 | -8/Garrison | Triggered checkpoint 1277 | -8/Garrison | Core integrity fell below 20% 1282 | -8/Garrison | Destroyed by B-36 Bruiser with Hammer Last Messages --------------- 01245_ Machine Analyzer temporarily disabled. 01245_ Structural Scanner destroyed. 01267_ Beams of light sweep through the air. An alarm sounds. 01276_ Slammed into B-36 Bruiser. 01276_ Destabilizing: Core damaged (-16). 01276_ Triggered Stasis Trap. 01276_ A bubble of rippling energy engulfs the area. 01276_ Field strength at 94. 01277_ Field strength at 80. 01277_ Machine Analyzer destroyed. 01277_ System corrupted by crushing effect (+3). 01278_ Field strength at 66. 01279_ System corrupted: Matter fused (-5). 01279_ Field strength at 51. 01280_ Field strength at 43. 01280_ S-10 Pest destroyed. 01281_ Field strength at 29. 01282_ Field strength at 18. Map ----- +----------------------------------------------------+ | ?????????????????????????????????????????????????? | | ?????????????????????????????????????????????????? | | ?????????????????????????????????????????????????? | | ?????????????????????????????????????????????????? | | ?????????????????????????????????????????????????? | | ?????????????????????????????????????????????????? | | ?????????????????????????????????????????????????? | | ?????????????????????????????????????????????????? | | ?????????????????????????????????????????????????? | | ?????????????????????????????????????????????????? | | ?????????????????????????????????????????????????? | | ?????????????????????????????????????????????????? | | ?????????????????????????????????????????????????? | | ?????????????????????????????????????????????????? | | ?????????????????????????????????????????????????? | | ?????????????????????????????????????????????????? | | ?????????????????????????????????????????????????? | | ?????????????????????????????????????????????????? | | ?????????????????????????????????????????????????? | | ?????????????????????????????????????????????????? | | ?????????????????????????????????????????????????? | | ?????????????????????????????????????????????????? | | ??????????? ###??????????????????????????????????? | | ??????????? ##############??????########### | | ????????????????# b^sss #??????# | | ????????????????# @g #??????# | | ????????????????########g##### #??????# ######## | | ???????????????????????# ????# #??????# #??????? | | ??????????????????????? ?????# #??????# #??????? | | ??????????????????????##?????# #??????# #??????? | | ?????????????????????????????# #??????# #??????? | | ?????????????????????????????# ######## #??????? | | ?????????????????????????????# ## ## #??????? | | ????????????????????????????## ## ## ##?????? | | ????????????????????????????# #?????? | | ????????????????????????????# #?????? | | ????????????????????????????# #?????? | | ????????????????????????????# ## ## #?????? | | ??????????????????????????### ## ## #?????? | | ??????????????????????????# "?????? | | ??????????????????????????# "?????? | | ??????????????????????????# "?????? | | ??????????????????????????# "?????? | | ??????????????????????????### ## ## #?????? | | ????????????????????????????# ## ## #?????? | | ??????????????????????????? #?????? | | ????????????????????????? #?????? | | ?????????????????????????#### #?????? | | ????????????????????????????## ##""""## ##?????? | | ?????????????????????????????# ???????? #??????? | +----------------------------------------------------+ Best States ------------- Heat Dissipation 31 Energy Generation 10 Energy Capacity 250 Matter Stores 266 Matter Capacity 300 Sight Range 16 Robot Scan Range 15 Terrain Scan Range 16 Terrain Scan Density 10 Evasion (%) 63 Item Schematics ----------------- None Robot Schematics ------------------ None Fabricated ------------ Nothing Repaired ---------- Nothing Studied --------- None Alien Tech Used ----------------- None Achievements -------------- None Challenges ------------ None Game ------ Seed GravityWardroneImmobilizer Manual? 0 Play Time 00:22:09 Cumulative 26.7 hours Start 2026.03.14 @ 21:31:45 End 2026.03.14 @ 21:52:38 Sessions 1 Manual Loads 0 Difficulty Rogue Special Mode None Game No. 49 Rogue 49 Adventurer 0 Explorer 0 Win Type - Total 0 Types 0/0/0/0/0/0/0/0/0/0 Lore% 24 Gallery% 23 Achievement% 20 Wizard Run 0 Options --------- Layout 1 ASCII 0 Keyboard 0 Movement Numpad Keybinds 0 Fullscreen 1 Font 24/Smallcaps Map View 50x35 Zoom Use 0% Tactical HUD 1 Map Filters NONE Filters NONE Steam 1 RUN: f6f9786b-0709-48c5-914d-8c07dc9268fd